bitfinex-derivatives/quotes_BNBF0:USTF0_20250630
["timestamp","ask_amount","ask_price","bid_price","bid_amount"]
[1751277748470,1.0074042,652.25,651.2,2.2926254]
[1751277748769,1.0074042,652.24,651.2,2.2926254]
[1751277748971,1.0074042,652.23,651.2,2.2926254]
[1751277749168,1.0074042,652.22,651.2,2.2926254]
[1751277749374,1.0074042,652.21,651.2,2.2926254]
[1751277749672,1.0074042,652.2,651.18,2.2926254]
[1751277749870,1.0074042,652.19,651.18,2.2926254]
[1751277750069,1.1405129,652.46,651.18,2.2926254]
[1751277750070,1.0074042,652.18,651.18,2.2926254]
[1751277750374,1.0074042,652.17,651.21,2.2926254]
[1751277750571,1.0074042,652.16,651.21,2.2926254]
[1751277750770,1.0074042,652.15,651.2,2.2926254]
[1751277751071,1.0074042,652.14,651.22,2.2926254]
[1751277751271,1.0074042,652.13,651.22,2.2926254]
[1751277751471,1.0074042,652.12,651.22,2.2926254]
[1751277751772,1.1405129,652.45,651.22,2.2926254]
[1751277751973,2.1160567,652.44,651.22,2.2926254]
[1751277752172,2.1160567,652.43,651.22,2.2926254]
[1751277752372,2.1160567,652.42,651.21,2.2926254]
[1751277752568,2.1160567,652.41,651.21,2.2926254]
[1751277752773,2.1160567,652.4,651.22,2.2926254]
[1751277752972,2.1160567,652.39,651.22,2.2926254]
[1751277753174,2.1160567,652.38,651.22,2.2926254]
[1751277753370,2.1160567,652.37,651.23,2.2926254]
[1751277753577,2.1160567,652.36,651.21,2.2926254]
[1751277753872,2.1160567,652.35,651.21,2.2926254]
[1751277754077,2.1160567,652.34,651.22,2.2926254]
[1751277754275,2.1160567,652.33,651.23,2.2926254]
[1751277754472,2.1160567,652.32,651.23,2.2926254]
[1751277754675,2.1160567,652.31,651.23,2.2926254]
[1751277754875,2.1160567,652.3,651.23,2.2926254]
[1751277755070,2.1160567,652.29,651.23,2.2926254]
[1751277755272,2.1160567,652.28,651.26,2.2926254]
[1751277755475,2.1160567,652.27,651.26,2.2926254]
[1751277755676,2.1160567,652.26,651.26,2.2926254]
[1751277755871,1.007536,652.25,651.26,2.2926254]
[1751277756072,1.007536,652.24,651.26,2.2926254]
[1751277756274,1.007536,652.23,651.26,2.2926254]
[1751277756574,1.007536,652.22,651.27,2.2926254]
[1751277756875,1.007536,652.21,651.27,2.2926254]
[1751277757177,1.007536,652.2,651.26,2.2926254]
[1751277757374,1.007536,652.19,651.26,2.2926254]
[1751277757578,1.007536,652.18,651.26,2.2926254]
[1751277757775,1.007536,652.17,651.26,2.2926254]
[1751277757979,1.007536,652.16,651.3,2.2926254]
[1751277758179,1.007536,652.15,651.32,2.2926254]
[1751277758374,1.007536,652.14,651.32,2.2926254]
[1751277758579,1.007536,652.13,651.32,2.2926254]
[1751277758775,1.007536,652.12,651.32,2.2926254]
[1751277758978,1.007536,652.11,651.32,2.2926254]
[1751277759278,1.007536,652.1,651.33,2.2926254]
[1751277759476,1.007536,652.09,651.33,2.2926254]
[1751277759776,1.1405129,652.35,651.33,2.2926254]
[1751277759777,1.007536,652.08,651.33,2.2926254]
[1751277759980,1.007536,652.07,651.33,2.2926254]
[1751277760176,1.1094894,652.33,651.33,2.2926254]
[1751277760377,2.1160366,652.32,651.33,2.2926254]
[1751277760679,2.1160366,652.31,651.29,2.2926254]
[1751277760876,2.1160366,652.3,651.29,2.2926254]
[1751277761076,2.1160366,652.29,651.29,2.2926254]
[1751277761281,2.1160366,652.28,651.29,2.2926254]
[1751277761475,2.1160366,652.27,651.29,2.2926254]
[1751277761679,1.0065472,652.26,651.29,2.2926254]
[1751277761980,1.0065472,652.25,651.28,2.2926254]
[1751277762177,1.0065472,652.24,651.28,2.2926254]
[1751277762382,1.0065472,652.23,651.28,2.2926254]
[1751277762578,1.0065472,652.22,651.28,2.2926254]
[1751277762783,1.0065472,652.21,651.28,2.2926254]
[1751277762982,1.0065472,652.2,651.28,2.2926254]
[1751277763278,1.0065472,652.19,651.27,2.2926254]
[1751277763579,1.0065472,652.18,651.27,2.2926254]
[1751277763781,1.0065472,652.17,651.27,2.2926254]
[1751277763981,1.0065472,652.16,651.21,2.2926254]
[1751277764181,1.0065472,652.15,651.21,2.2926254]
[1751277764380,1.0065472,652.14,651.2,2.2926254]
[1751277764579,1.0065472,652.13,651.2,2.2926254]
[1751277764782,1.0065472,652.12,651.2,2.2926254]
[1751277764984,1.0065472,652.11,651.18,2.2926254]
[1751277765285,1.0065472,652.1,651.18,2.2926254]
[1751277765486,1.0065472,652.09,651.16,2.2926254]
[1751277765682,1.0065472,652.08,651.16,2.2926254]
[1751277765883,1.5249503,652.56,651.16,2.2926254]
[1751277766182,1.1410294,652.19,651.1,2.2926254]
[1751277766381,2.1483403,652.18,651.09,2.2926254]
[1751277766682,1.0073109,652.17,651.09,2.2926254]
[1751277766982,1.0073109,652.16,651.09,2.2926254]
[1751277767186,1.0073109,652.15,651.09,2.2926254]
[1751277767486,1.0073109,652.14,651.09,2.2926254]
[1751277767785,1.0073109,652.13,651.09,2.2926254]
[1751277767986,1.0073109,652.12,651.09,2.2926254]
[1751277768287,1.1410294,652.1,651.11,2.2926254]
[1751277768482,1.0073109,652.09,651.08,2.2926254]
[1751277768680,1.1410294,652.11,651.08,2.2926254]
[1751277768681,1.0073109,652.08,651.08,2.2926254]
[1751277768882,1.0073109,652.07,651.08,2.2926254]
[1751277769084,1.0073109,652.06,651.08,2.2926254]
[1751277769288,1.0073109,652.05,651.08,2.2926254]
[1751277769485,1.0073109,652.04,651.08,2.2926254]
[1751277769789,1.0073109,652.03,651.07,2.2926254]
[1751277770088,1.0073109,652.02,651.07,2.2926254]
[1751277770285,1.0073109,652.01,651.02,0.26692848]
[1751277770584,1.0073109,652.0,651.02,0.26692848]
[1751277770885,1.0073109,651.99,651.02,0.26692848]
[1751277771083,1.0073109,651.98,651.02,0.26692848]
[1751277771283,1.0073109,651.97,651.02,0.26692848]
[1751277771488,1.0073109,651.96,651.02,0.26692848]
[1751277771687,1.0073109,651.95,651.02,0.26692848]
[1751277771888,1.0073109,651.94,651.02,0.26692848]
[1751277772185,1.0073109,651.93,651.02,0.26692848]
[1751277772384,1.0073109,651.92,651.02,0.26692848]
[1751277772584,1.0073109,651.91,651.02,0.26692848]
[1751277772788,1.0073109,651.9,651.02,0.26692848]
[1751277772989,1.0073109,651.89,651.02,0.26692848]
[1751277773289,1.1410294,652.16,651.02,0.26692848]
[1751277773290,1.3434798,652.13,651.06,2.2926254]
[1751277773486,2.1164824,652.12,651.06,2.2926254]
[1751277773784,2.1164824,652.11,651.05,2.2926254]
[1751277773985,2.1164824,652.1,651.05,2.2926254]
[1751277774289,2.1164824,652.09,651.05,2.2926254]
[1751277774588,2.1164824,652.08,651.05,2.2926254]
[1751277774790,2.1164824,652.07,651.05,2.2926254]
[1751277774987,2.1164824,652.06,651.03,2.2926254]
[1751277775290,2.1164824,652.05,651.03,2.2926254]
[1751277775490,2.1164824,652.04,651.06,2.2926254]
[1751277775689,2.1164824,652.03,651.08,2.2926254]
[1751277775986,2.1164824,652.02,651.08,2.2926254]
[1751277776191,2.1164824,652.01,651.07,2.2926254]
[1751277776490,2.1164824,652.0,651.07,2.2926254]
[1751277776690,2.1164824,651.99,651.07,2.2926254]
[1751277776986,2.1164824,651.98,651.07,2.2926254]
[1751277777185,2.1164824,651.97,651.06,2.2926254]
[1751277777389,2.1164824,651.96,651.06,2.2926254]
[1751277777590,1.1410294,652.3,651.06,2.2926254]
[1751277777786,3.95545656,652.29,651.06,2.2926254]
[1751277777990,1.1410294,652.27,651.15,2.2926254]
[1751277778190,3.4566945,652.26,651.14,2.2926254]
[1751277778391,3.95545656,652.25,651.11,2.2926254]
[1751277778592,3.95545656,652.24,651.11,2.2926254]
[1751277778794,3.4566945,652.23,651.09,2.2926254]
[1751277778990,3.4566945,652.22,651.1,2.2926254]
[1751277779288,3.4566945,652.21,651.07,2.2926254]
[1751277779488,2.1148449,652.2,651.09,2.2926254]
[1751277779792,2.1148449,652.19,651.08,2.2926254]
[1751277779989,2.1148449,652.18,651.08,2.2926254]
[1751277780188,1.0053926,652.17,651.07,2.2926254]
[1751277780388,1.0053926,652.16,651.06,2.2926254]
[1751277780592,1.0053926,652.15,651.06,2.2926254]
[1751277780792,1.0053926,652.14,651.05,2.2926254]
[1751277780989,1.0053926,652.13,651.03,2.2926254]
[1751277781187,1.0053926,652.12,651.02,2.55955388]
[1751277781389,1.0053926,652.11,651.02,0.26692848]
[1751277781693,1.0053926,652.1,651.02,0.26692848]
[1751277781894,1.0053926,652.09,651.02,0.26692848]
[1751277782094,1.0053926,652.08,651.02,0.26692848]
[1751277782294,1.0053926,652.07,651.02,0.26692848]
[1751277782494,2.1149343,652.06,651.02,0.26692848]
[1751277782695,1.0053926,652.05,651.02,0.26692848]
[1751277782992,1.0053926,652.04,651.02,0.26692848]
[1751277783190,1.0053926,652.03,651.02,0.26692848]
[1751277783496,1.0053926,652.02,651.02,0.26692848]
[1751277783694,1.0053926,652.01,651.02,0.26692848]
[1751277783996,1.0053926,652.0,651.02,0.26692848]
[1751277784196,1.0053926,651.99,651.02,0.26692848]
[1751277784491,1.0053926,651.98,651.02,0.26692848]
[1751277784696,1.0053926,651.97,651.02,0.26692848]
[1751277784893,1.0053926,651.96,651.02,0.26692848]
[1751277788797,1.0053926,651.78,651.02,0.26692848]
[1751277788999,1.0053926,651.77,651.02,0.26692848]
[1751277789197,1.0053926,651.76,651.02,0.26692848]
[1751277789397,1.0053926,651.75,651.02,0.26692848]
[1751277789694,1.1410294,652.03,651.02,0.26692848]
[1751277789898,3.4453636,652.02,651.02,0.26692848]
[1751277790096,2.1070019,652.01,651.02,0.26692848]
[1751277790400,2.1070019,652.0,651.02,0.26692848]
[1751277790600,2.1067723,651.99,651.02,0.26692848]
[1751277790797,2.1067723,651.98,651.02,0.26692848]
[1751277791001,2.1067723,651.97,651.02,0.26692848]
[1751277791197,2.1067723,651.96,651.02,0.26692848]
[1751277791401,2.1067723,651.95,651.02,0.26692848]
[1751277791601,2.1067723,651.94,651.02,0.26692848]
[1751277791810,2.1067723,651.93,651.02,0.26692848]
[1751277792008,2.1067723,651.92,651.02,0.26692848]
[1751277792211,2.1067723,651.91,651.02,0.26692848]
[1751277792407,2.1067723,651.9,651.02,0.26692848]
[1751277792612,2.1067723,651.89,651.02,0.26692848]
[1751277792812,2.1067723,651.88,651.02,0.26692848]
[1751277793012,2.1067723,651.87,651.02,0.26692848]
[1751277793315,2.1067723,651.86,651.02,0.26692848]
[1751277793611,2.1067723,651.85,651.02,0.26692848]
[1751277793809,2.1067723,651.84,651.02,0.26692848]
[1751277794006,2.1067723,651.83,651.02,0.26692848]
[1751277794207,2.1067723,651.82,651.02,0.26692848]
[1751277794509,2.1067723,651.81,651.02,0.26692848]
[1751277794812,1.0008185,651.8,651.02,0.26692848]
[1751277795007,1.0008185,651.79,651.02,0.26692848]
[1751277795207,1.0008185,651.78,651.02,0.26692848]
[1751277795409,1.0008185,651.77,651.02,0.26692848]
[1751277795608,1.0008185,651.76,651.02,0.26692848]
[1751277795813,1.0008185,651.75,651.02,0.26692848]
[1751277796109,1.0008185,651.74,651.02,0.26692848]
[1751277796309,1.3370345,652.08,651.02,0.26692848]
[1751277796509,2.1052377,652.07,651.02,0.26692848]
[1751277796812,2.1052377,652.06,651.02,0.26692848]
[1751277797013,2.1052377,652.05,651.02,0.26692848]
[1751277797208,2.1052377,652.04,651.02,0.26692848]
[1751277797513,2.1052377,652.03,651.02,0.26692848]
[1751277797711,2.1052377,652.02,651.02,0.26692848]
[1751277797911,2.1052377,652.01,651.02,0.26692848]
[1751277798114,2.1052377,652.0,651.02,0.26692848]
[1751277798317,2.1052377,651.99,651.02,0.26692848]
[1751277798509,2.1052377,651.98,651.02,0.26692848]
[1751277798712,2.1052377,651.97,651.02,0.26692848]
[1751277798912,2.1052377,651.96,651.02,0.26692848]
[1751277799115,2.1052377,651.95,651.02,0.26692848]
[1751277799311,2.1052377,651.94,651.02,0.26692848]
[1751277799512,2.1052377,651.93,651.02,0.26692848]
[1751277799717,2.1052377,651.92,651.02,0.26692848]
[1751277799914,2.1052377,651.91,651.02,0.26692848]
[1751277800113,2.1052377,651.9,651.02,0.26692848]
[1751277800318,2.1052377,651.89,651.02,0.26692848]
[1751277800518,2.1052377,651.88,651.02,0.26692848]
[1751277800715,2.1052377,651.87,651.02,0.26692848]
[1751277801019,2.1052377,651.86,651.02,0.26692848]
[1751277801315,1.0001585,651.85,651.02,0.26692848]
[1751277801519,1.1410294,652.14,651.02,0.26692848]
[1751277801520,1.0001585,651.84,651.02,0.26692848]
[1751277801819,1.0001585,651.83,651.02,0.26692848]
[1751277802114,1.0001585,651.82,651.02,0.26692848]
[1751277802321,1.0001585,651.81,651.02,0.26692848]
[1751277802516,1.0001585,651.8,651.02,0.26692848]
[1751277802716,1.3369615,652.08,651.02,0.26692848]
[1751277802918,2.105491,652.07,651.02,0.26692848]
[1751277803119,2.105491,652.06,651.02,0.26692848]
[1751277803318,2.105491,652.05,651.02,0.26692848]
[1751277803520,2.105491,652.04,651.02,0.26692848]
[1751277803718,2.105491,652.03,651.02,0.26692848]
[1751277803918,2.105491,652.02,651.02,0.26692848]
[1751277804217,2.105491,652.01,651.02,0.26692848]
[1751277804417,2.105491,652.0,651.02,0.26692848]
[1751277804617,2.105491,651.99,651.02,0.26692848]
[1751277804818,2.105491,651.98,651.02,0.26692848]
[1751277805122,2.105491,651.97,651.02,0.26692848]
[1751277805323,2.105491,651.96,651.02,0.26692848]
[1751277805523,2.105491,651.95,651.02,0.26692848]
[1751277805821,2.105491,651.94,651.02,0.26692848]
[1751277806018,2.105491,651.93,651.02,0.26692848]
[1751277806319,2.105491,651.92,651.02,0.26692848]
[1751277806523,2.105491,651.91,651.02,0.26692848]
[1751277806724,2.105491,651.9,651.02,0.26692848]
[1751277806927,2.105491,651.89,651.02,0.26692848]
[1751277807225,2.105491,651.88,651.02,0.26692848]
[1751277807426,2.105491,651.87,651.02,0.26692848]
[1751277807726,1.0004383,651.86,651.02,0.26692848]
[1751277807928,1.0004383,651.85,651.02,0.26692848]
[1751277808126,1.0004383,651.84,651.02,0.26692848]
[1751277808327,1.0004383,651.83,651.02,0.26692848]
[1751277808526,1.0004383,651.82,651.02,0.26692848]
[1751277808722,1.0004383,651.81,651.02,0.26692848]
[1751277808924,1.0004383,651.8,651.02,0.26692848]
[1751277809126,1.0004383,651.79,651.02,0.26692848]
[1751277809428,1.0004383,651.78,651.02,0.26692848]
[1751277809724,1.3374035,652.11,651.02,0.26692848]
[1751277809929,1.1410294,652.13,651.02,0.26692848]
[1751277809930,3.443706,652.1,651.02,0.26692848]
[1751277810222,2.1063025,652.09,651.02,0.26692848]
[1751277810426,2.1063025,652.08,651.02,0.26692848]
[1751277810626,2.1063025,652.07,651.02,0.26692848]
[1751277810926,2.1063025,652.06,651.02,0.26692848]
[1751277811127,2.1063025,652.05,651.02,0.26692848]
[1751277811426,2.1063025,652.04,651.02,0.26692848]
[1751277811624,2.1063025,652.03,651.02,0.26692848]
[1751277811829,2.1063025,652.02,651.02,0.26692848]
[1751277812127,2.1063025,652.01,651.02,0.26692848]
[1751277812325,2.1063025,652.0,651.02,0.26692848]
[1751277812628,2.1063025,651.99,651.02,0.26692848]
[1751277812824,2.1063025,651.98,651.02,0.26692848]
[1751277813026,2.1063025,651.97,651.02,0.26692848]
[1751277813228,2.1063025,651.96,651.02,0.26692848]
[1751277813425,2.1063025,651.95,651.02,0.26692848]
[1751277813627,2.1063025,651.94,651.02,0.26692848]
[1751277813927,2.1063025,651.93,651.02,0.26692848]
[1751277814226,2.1063025,651.92,651.02,0.26692848]
[1751277814431,2.1063025,651.91,651.02,0.26692848]
[1751277814631,2.1063025,651.9,651.02,0.26692848]
[1751277814831,1.0009239,651.89,651.02,0.26692848]
[1751277815131,1.0009239,651.88,651.02,0.26692848]
[1751277815430,1.0009239,651.87,651.02,0.26692848]
[1751277815630,1.1410294,652.2,651.02,0.26692848]
[1751277815631,1.0009239,651.86,651.02,0.26692848]
[1751277815831,1.0009239,651.85,651.02,0.26692848]
[1751277816031,1.0009239,651.84,651.02,0.26692848]
[1751277816233,1.0009239,651.83,651.02,0.26692848]
[1751277816432,1.0009239,651.82,651.02,0.26692848]
[1751277816630,1.0009239,651.81,651.02,0.26692848]
[1751277816929,1.1410294,652.2,651.02,0.26692848]
[1751277816930,1.3378869,652.12,651.02,0.26692848]
[1751277817133,2.1088208,652.11,651.02,0.26692848]
[1751277817428,2.1088208,652.1,651.02,0.26692848]
[1751277817633,2.1088208,652.09,651.02,0.26692848]
[1751277817830,2.1088208,652.08,651.02,0.26692848]
[1751277818033,2.1088208,652.07,651.02,0.26692848]
[1751277818332,2.1088208,652.06,651.02,0.26692848]
[1751277818533,2.1088208,652.05,651.02,0.26692848]
[1751277818733,2.1088208,652.04,651.02,0.26692848]
[1751277819034,2.1088208,652.03,651.02,0.26692848]
[1751277819230,2.1088208,652.02,651.02,0.26692848]
[1751277819535,2.1088208,652.01,651.02,0.26692848]
[1751277819731,2.1088208,652.0,651.02,0.26692848]
[1751277820030,2.1088208,651.99,651.02,0.26692848]
[1751277820234,2.1088208,651.98,651.02,0.26692848]
[1751277820434,2.1088208,651.97,651.02,0.26692848]
[1751277820635,1.1410294,652.17,651.02,0.26692848]
[1751277820636,2.1088208,651.96,651.02,0.26692848]
[1751277820835,2.1088208,651.95,651.02,0.26692848]
[1751277821131,2.1088208,651.94,651.02,0.26692848]
[1751277821330,2.1088208,651.93,651.02,0.26692848]
[1751277821532,2.1088208,651.92,651.02,0.26692848]
[1751277821732,1.002268,651.91,651.02,0.26692848]
[1751277821931,1.002268,651.9,651.02,0.26692848]
[1751277822234,1.002268,651.89,651.02,0.26692848]
[1751277822432,1.002268,651.88,651.02,0.26692848]
[1751277822630,1.002268,651.87,651.02,0.26692848]
[1751277822832,1.002268,651.86,651.02,0.26692848]
[1751277823031,1.002268,651.85,651.02,0.26692848]
[1751277823232,1.002268,651.84,651.02,0.26692848]
[1751277823436,1.002268,651.83,651.02,0.26692848]
[1751277823636,1.002268,651.82,651.02,0.26692848]
[1751277823833,1.002268,651.81,651.02,0.26692848]
[1751277824034,1.002268,651.8,651.02,0.26692848]
[1751277824238,1.002268,651.79,651.02,0.26692848]
[1751277824537,1.002268,651.78,651.02,0.26692848]
[1751277824734,1.002268,651.77,651.02,0.26692848]
[1751277824935,1.002268,651.76,651.02,0.26692848]
[1751277825237,1.002268,651.75,651.02,0.26692848]
[1751277825437,1.002268,651.74,651.02,0.26692848]
[1751277825634,1.002268,651.73,651.02,0.26692848]
[1751277825839,1.002268,651.72,651.02,0.26692848]
[1751277826136,1.002268,651.71,651.02,0.26692848]
[1751277826435,1.002268,651.7,651.02,0.26692848]
[1751277826634,1.1410294,652.07,651.02,0.26692848]
[1751277826838,2.1148847,652.06,651.02,0.26692848]
[1751277827034,2.1148847,652.05,651.02,0.26692848]
[1751277827238,2.1148847,652.04,651.02,0.26692848]
[1751277827438,2.1148847,652.03,651.02,0.26692848]
[1751277827639,2.1148847,652.02,651.02,0.26692848]
[1751277827839,2.1148847,652.01,651.02,0.26692848]
[1751277828035,2.1148847,652.0,651.02,0.26692848]
[1751277828240,2.1148847,651.99,651.02,0.26692848]
[1751277828539,2.1148847,651.98,651.02,0.26692848]
[1751277828740,2.1148847,651.97,651.02,0.26692848]
[1751277828941,2.1148847,651.96,651.02,0.26692848]
[1751277829238,2.1148847,651.95,651.02,0.26692848]
[1751277829437,1.1410294,652.06,651.02,0.26692848]
[1751277829438,2.1148847,651.94,651.02,0.26692848]
[1751277829640,1.0055938,651.93,651.02,0.26692848]
[1751277829838,1.0055938,651.92,651.02,0.26692848]
[1751277830036,1.0055938,651.91,651.02,0.26692848]
[1751277830238,1.0055938,651.9,651.02,0.26692848]
[1751277830435,1.0055938,651.89,651.02,0.26692848]
[1751277830635,1.0055938,651.88,651.02,0.26692848]
[1751277830839,1.0055938,651.87,651.02,0.26692848]
[1751277831035,1.0055938,651.86,651.02,0.26692848]
[1751277831235,1.0055938,651.85,651.02,0.26692848]
[1751277831437,1.0055938,651.84,651.02,0.26692848]
[1751277831639,1.0055938,651.83,651.02,0.26692848]
[1751277831843,1.0055938,651.82,651.02,0.26692848]
[1751277832142,1.0055938,651.81,651.02,0.26692848]
[1751277832342,1.0055938,651.8,651.02,0.26692848]
[1751277832543,1.0055938,651.79,651.02,0.26692848]
[1751277832745,1.0055938,651.78,651.02,0.26692848]
[1751277833040,1.0055938,651.77,651.02,0.26692848]
[1751277833238,1.0055938,651.76,651.02,0.26692848]
[1751277833440,1.0055938,651.75,651.02,0.26692848]
[1751277833639,1.0055938,651.74,651.02,0.26692848]
[1751277833844,1.0055938,651.73,651.02,0.26692848]
[1751277834040,1.0055938,651.72,651.02,0.26692848]
[1751277834343,1.0055938,651.71,651.02,0.26692848]
[1751277834545,1.0055938,651.7,651.02,0.26692848]
[1751277834839,1.0055938,651.69,651.02,0.26692848]
[1751277835041,1.0055938,651.68,651.02,0.26692848]
[1751277835241,1.0055938,651.67,651.02,0.26692848]
[1751277835440,1.0055938,651.66,651.02,0.26692848]
[1751277835640,1.0055938,651.65,651.02,0.26692848]
[1751277835944,1.0055938,651.64,651.02,0.26692848]
[1751277836146,1.1119381,651.95,651.02,0.26692848]
[1751277836349,2.11826,651.94,651.02,0.26692848]
[1751277836543,2.11826,651.93,651.02,0.26692848]
[1751277836746,2.11826,651.92,651.02,0.26692848]
[1751277836946,2.11826,651.91,651.02,0.26692848]
[1751277837148,2.11826,651.9,651.02,0.26692848]
[1751277837448,2.11826,651.89,651.02,0.26692848]
[1751277837748,2.11826,651.88,651.02,0.26692848]
[1751277837944,1.1410294,652.0,651.02,0.26692848]
[1751277837945,1.0063219,651.87,651.02,0.26692848]
[1751277838243,1.0063219,651.86,651.02,0.26692848]
[1751277838448,1.0063219,651.85,651.02,0.26692848]
[1751277838647,1.0063219,651.84,651.02,0.26692848]
[1751277838847,1.0063219,651.83,651.02,0.26692848]
[1751277839045,1.0063219,651.82,651.02,0.26692848]
[1751277839248,1.0063219,651.81,651.02,0.26692848]
[1751277839450,1.0063219,651.8,651.02,0.26692848]
[1751277839648,1.0063219,651.79,651.02,0.26692848]
[1751277839844,1.0063219,651.78,651.02,0.26692848]
[1751277840049,1.0063219,651.77,651.02,0.26692848]
[1751277840250,1.0063219,651.76,651.02,0.26692848]
[1751277840449,1.0063219,651.75,651.02,0.26692848]
[1751277840645,1.0063219,651.74,651.02,0.26692848]
[1751277840947,1.0063219,651.73,651.02,0.26692848]
[1751277841148,1.0063219,651.72,651.02,0.26692848]
[1751277841349,1.0063219,651.71,651.02,0.26692848]
[1751277841551,1.0063219,651.7,651.02,0.26692848]
[1751277841751,1.0063219,651.69,651.02,0.26692848]
[1751277841947,1.0063219,651.68,651.02,0.26692848]
[1751277842149,1.0063219,651.67,651.02,0.26692848]
[1751277842347,1.0063219,651.66,651.02,0.26692848]
[1751277842550,1.0063219,651.65,651.02,0.26692848]
[1751277842752,1.0063219,651.64,651.02,0.26692848]
[1751277842953,1.0065139,651.63,651.02,0.26692848]
[1751277843149,1.3448118,651.99,651.02,0.26692848]
[1751277843355,2.1185817,651.98,651.02,0.26692848]
[1751277843654,2.1185817,651.97,651.02,0.26692848]
[1751277843853,2.1185817,651.96,651.02,0.26692848]
[1751277844155,2.1185817,651.95,651.02,0.26692848]
[1751277844351,2.1185817,651.94,651.02,0.26692848]
[1751277844554,2.1185817,651.93,651.02,0.26692848]
[1751277844849,2.1185817,651.92,651.02,0.26692848]
[1751277845054,2.1185817,651.91,651.02,0.26692848]
[1751277845351,2.1185817,651.9,651.02,0.26692848]
[1751277845655,2.1185817,651.89,651.02,0.26692848]
[1751277845953,2.1185817,651.88,651.02,0.26692848]
[1751277846155,2.1185817,651.87,651.02,0.26692848]
[1751277846455,2.1185817,651.86,651.02,0.26692848]
[1751277846750,2.1185817,651.85,651.02,0.26692848]
[1751277846951,2.1185817,651.84,651.02,0.26692848]
[1751277847254,2.1185817,651.83,651.02,0.26692848]
[1751277847454,1.1410294,651.99,651.02,0.26692848]
[1751277847455,2.1185817,651.82,651.02,0.26692848]
[1751277847751,2.1185817,651.81,651.02,0.26692848]
[1751277848051,1.0065399,651.8,651.02,0.26692848]
[1751277848252,1.0065399,651.79,651.02,0.26692848]
[1751277848556,1.0065399,651.78,651.02,0.26692848]
[1751277848855,1.0065399,651.77,651.02,0.26692848]
[1751277849050,1.1410294,651.99,651.02,0.26692848]
[1751277849051,1.0065399,651.76,651.02,0.26692848]
[1751277849351,1.0065399,651.75,651.02,0.26692848]
[1751277849552,1.0065399,651.74,651.02,0.26692848]
[1751277849751,1.0065399,651.73,651.02,0.26692848]
[1751277850050,1.0065399,651.72,651.02,0.26692848]
[1751277850354,1.0065399,651.71,651.02,0.26692848]
[1751277850554,1.0065399,651.7,651.02,0.26692848]
[1751277850752,1.0065399,651.69,651.02,0.26692848]
[1751277850950,1.0065399,651.68,651.02,0.26692848]
[1751277851154,1.0065399,651.67,651.02,0.26692848]
[1751277851354,1.0065399,651.66,651.02,0.26692848]
[1751277851651,1.0065399,651.65,651.02,0.26692848]
[1751277851850,1.0065399,651.64,651.02,0.26692848]
[1751277852050,1.0065399,651.63,651.02,0.26692848]
[1751277852251,1.0065399,651.62,651.02,0.26692848]
[1751277852553,1.0065399,651.61,651.02,0.26692848]
[1751277852749,1.0065399,651.6,651.02,0.26692848]
[1751277852952,1.1410294,651.99,651.02,0.26692848]
[1751277853151,2.1180949,651.98,651.02,0.26692848]
[1751277853351,2.1180949,651.97,651.02,0.26692848]
[1751277853551,2.1180949,651.96,651.02,0.26692848]
[1751277853754,2.1180949,651.95,651.02,0.26692848]
[1751277853956,2.1180949,651.94,651.02,0.26692848]
[1751277854156,1.0060283,651.93,651.02,0.26692848]
[1751277854450,1.1410294,651.98,651.02,0.26692848]
[1751277854451,1.0060283,651.92,651.02,0.26692848]
[1751277854755,1.0060283,651.91,651.02,0.26692848]
[1751277855056,1.0060283,651.9,651.02,0.26692848]
[1751277855255,1.0060283,651.89,651.02,0.26692848]
[1751277855551,1.0060283,651.88,651.02,0.26692848]
[1751277855851,1.0060283,651.87,651.02,0.26692848]
[1751277856055,1.0060283,651.86,651.02,0.26692848]
[1751277856350,1.0060283,651.85,651.02,0.26692848]
[1751277856653,1.0060283,651.84,651.02,0.26692848]
[1751277856854,1.0060283,651.83,651.02,0.26692848]
[1751277857055,1.0060283,651.82,651.02,0.26692848]
[1751277857254,1.0060283,651.81,651.02,0.26692848]
[1751277857453,1.0060283,651.8,651.02,0.26692848]
[1751277857653,1.0060283,651.79,651.02,0.26692848]
[1751277857857,2.1180969,651.78,651.02,0.26692848]
[1751277858153,1.0060283,651.77,651.02,0.26692848]
[1751277858356,1.1410294,651.94,651.02,0.26692848]
[1751277858357,1.0060283,651.76,651.02,0.26692848]
[1751277858655,1.0060283,651.75,651.02,0.26692848]
[1751277858856,1.0060283,651.74,651.02,0.26692848]
[1751277859154,1.0060283,651.73,651.02,0.26692848]
[1751277859356,1.0060283,651.72,651.02,0.26692848]
[1751277859555,1.0060283,651.71,651.02,0.26692848]
[1751277859752,1.0060283,651.7,651.02,0.26692848]
[1751277859956,1.0060283,651.69,651.02,0.26692848]
[1751277860154,1.0060283,651.68,651.02,0.26692848]
[1751277860353,1.0060283,651.67,651.02,0.26692848]
[1751277860556,1.0060283,651.66,651.02,0.26692848]
[1751277860755,1.0060283,651.65,651.02,0.26692848]
[1751277860955,1.0060283,651.64,651.02,0.26692848]
[1751277861154,1.0060283,651.63,651.02,0.26692848]
[1751277861359,1.0060283,651.62,651.02,0.26692848]